fUSD/lending_fUSD_20250708
["ID","MTS","AMOUNT","RATE_DAILY","PERIOD"]
[370405803,1752003032506,-4662.51281194,0.00023437,2]
[370405806,1752003032515,-502.0,0.00023452,2]
[370405811,1752003032525,-2037.40352821,0.00023492,2]
[370405813,1752003032537,-435.45,0.00023492,2]
[370405823,1752003032622,-2362.17225777,0.00023492,2]
[370405825,1752003032632,-169.55,0.00023504,2]
[370405827,1752003032641,-169.55,0.00023543,2]
[370405829,1752003032651,-5013.92174006,0.00023547,2]
[370405831,1752003032660,-169.55,0.00023582,2]
[370405833,1752003032669,-3068.21777351,0.00023602,2]
[370405838,1752003032706,-900.25402775,0.00023602,2]
[370405841,1752003032725,-582.72184785,0.00023602,2]
[370405843,1752003032736,-648.24319533,0.00023602,2]
[370405845,1752003032745,-169.55,0.00023621,2]
[370405847,1752003032755,-521.38185446,0.00023624,9]
[370405849,1752003032764,-5391.81600769,0.00023657,2]
[370405851,1752003032773,-150.0,0.00023659,4]
[370405853,1752003032782,-169.55,0.0002366,2]
[370405855,1752003032791,-2000.0,0.00023692,5]
[370405857,1752003032800,-169.55,0.000237,2]
[370405859,1752003032809,-5591.31319997,0.00023712,2]
[370405861,1752003032819,-6899.0,0.00023718,2]
[370405863,1752003032829,-308.92599337,0.00023725,2]
[370405865,1752003032839,-160.0,0.00023725,2]
[370405867,1752003032849,-500.0,0.00023725,2]
[370405869,1752003032858,-500.0,0.00023725,2]
[370405871,1752003032868,-500.0,0.00023725,2]
[370405873,1752003032877,-500.0,0.00023725,2]
[370405875,1752003032886,-668.65185757,0.00023725,2]
[370405877,1752003032896,-214.30199779,0.00023725,2]
[370405879,1752003032905,-169.55,0.00023739,2]
[370405880,1752003032915,-5798.19178837,0.00023767,2]
[370405882,1752003032924,-1277.24370206,0.00023822,2]
[370405884,1752003032934,-170.33,0.00023836,2]
[370405886,1752003032944,-2000.0,0.00023843,5]
[370405888,1752003032953,-2000.0,0.00023843,5]
[370405890,1752003032963,-521.38185446,0.00023866,10]
[370405892,1752003032972,-553.0,0.00023934,7]
[370405894,1752003032983,-500.0,0.00023934,4]
[370405896,1752003032992,-164.22,0.00023999,2]
[370405898,1752003033001,-457.1,0.00023999,2]
[370405900,1752003033011,-521.38185446,0.00024107,10]
[370405902,1752003033020,-558.0,0.00024164,7]
[370405904,1752003033029,-296.59,0.00024194,2]
[370405906,1752003033038,-166.29,0.00024217,2]
[370405908,1752003033047,-296.59,0.00024316,2]
[370405910,1752003033056,-521.38185446,0.00024348,11]
[370405911,1752003033066,-150.0,0.00024359,2]
[370405913,1752003033075,-210.34477682,0.00024383,2]
[370405915,1752003033084,-837.09214054,0.00024383,2]
[370405917,1752003033094,-296.59,0.00024437,2]
[370405919,1752003033103,-1236.84939235,0.00024457,2]
[370405921,1752003033112,-154.41014872,0.00024457,2]
[370405923,1752003033122,-154.41014861,0.00024471,2]
[370405925,1752003033131,-154.41014861,0.00024484,2]
[370405927,1752003033143,-154.41014861,0.00024498,2]
[370405929,1752003033153,-1236.84939235,0.00024499,2]
[370405930,1752003033163,-154.41014861,0.00024511,2]
[370405931,1752003033172,-154.41014861,0.00024525,2]
[370405932,1752003033183,-154.41014861,0.00024538,2]
[370405933,1752003033192,-1236.84939235,0.0002454,2]
[370405934,1752003033202,-4796.33,0.00024548,3]
[370405935,1752003033211,-68178.65719887,0.0002455,2]
[370405936,1752003033248,-1681.79404762,0.0002455,2]
[370405937,1752003033259,-5657.00637238,0.0002455,2]
[370405938,1752003033271,-2144.85319028,0.0002455,2]
[370406418,1752003038052,-575.35328608,0.0002455,7]
[370406422,1752003038064,-749.1757813,0.0002455,7]
[370406427,1752003038109,-5230.76192,0.0002455,7]
[370406434,1752003038166,-2112.25496,0.0002455,7]
[370406436,1752003038179,-10793.0,0.0002455,7]
[370406625,1752003040158,-24567.01148874,0.0002455,7]
[370406627,1752003040170,-14701.18108577,0.0002455,7]
[370406629,1752003040183,-11816.29363471,0.0002455,7]
[370406668,1752003040556,-8766.3,0.0002455,7]
[370406916,1752003043376,-490.0,0.00024549,2]
[370407207,1752003046250,-10.0,0.00024549,2]
[370407209,1752003046260,-599.82100333,0.00024549,2]
[370407211,1752003046270,-500.0,0.00024549,2]
[370407213,1752003046279,-500.0,0.00024549,2]
[370407215,1752003046288,-500.0,0.00024549,2]
[370407217,1752003046298,-378.78447433,0.00024549,2]
[370407219,1752003046310,-500.0,0.00024549,2]
[370407221,1752003046319,-500.0,0.00024549,2]
[370407223,1752003046330,-500.0,0.00024549,2]
[370407225,1752003046341,-168.54973333,0.00024549,2]
[370407227,1752003046350,-500.0,0.00024549,2]
[370407229,1752003046361,-500.0,0.00024549,2]
[370407231,1752003046370,-413.29932869,0.00024549,2]
[370407235,1752003046398,-86.70067131,0.00024549,2]
[370407237,1752003046408,-500.0,0.00024549,2]
[370407239,1752003046417,-500.0,0.00024549,2]
[370407241,1752003046427,-13.12932869,0.00024549,2]
[370407347,1752003047466,-486.87067131,0.00024549,2]
[370407348,1752003047476,-500.0,0.00024549,2]
[370407349,1752003047485,-41644.04946775,0.0002455,7]
[370407350,1752003047497,-26171.7294158,0.0002455,7]
[370408349,1752003632054,159.08,0.00013699,2]
[370408351,1752003782715,828.78377267,0.00030136,120]
[370408352,1752003806678,349.54,0.00030137,120]
[370408358,1752004072838,1130.81150897,0.00030137,120]
[370408373,1752004237336,-501.0,0.00020934,2]
[370408374,1752004237346,-501.0,0.00021842,3]
[370408375,1752004237355,-150.0,0.00022,2]
[370408376,1752004237365,-188.88358568,0.00022288,2]
[370408377,1752004237375,-835.0,0.00022388,2]
[370408378,1752004237384,-300.0,0.00022388,2]
[370408379,1752004237394,-1200.0,0.00022388,2]
[370408380,1752004237403,-150.0,0.00022389,2]
[370408381,1752004237413,-150.0,0.00022389,2]
[370408382,1752004237422,-150.0,0.00022389,2]
[370408383,1752004237432,-150.0,0.00022389,2]
[370408384,1752004237441,-150.0,0.00022389,2]
[370408385,1752004237451,-150.0,0.00022389,2]
[370408386,1752004237461,-150.0,0.00022389,2]
[370408387,1752004237470,-150.0,0.00022389,2]
[370408388,1752004237481,-2000.0,0.00022544,5]
[370408389,1752004237491,-150.0,0.00022744,4]
[370408390,1752004237502,-501.0,0.00022751,4]
[370408392,1752004237512,-1025.59951889,0.000229,8]
[370408394,1752004237521,-566.92,0.00022942,2]
[370408396,1752004237539,-150.0,0.00023011,4]
[370408397,1752004237549,-2000.0,0.00023088,5]
[370408399,1752004237559,-300.0,0.00023088,2]
[370408401,1752004237568,-150.0,0.000231,4]
[370408403,1752004237578,-180.65540393,0.00023107,8]
[370408406,1752004237605,-844.94411472,0.00023107,8]
[370408408,1752004237616,-666.0,0.00023118,2]
[370408410,1752004237626,-167.54,0.00023122,2]
[370408411,1752004237636,-191.66,0.00023122,2]
[370408412,1752004237646,-290.04,0.00023122,2]
[370408413,1752004237656,-283.39,0.00023135,2]
[370408414,1752004237665,-250.0,0.00023188,2]
[370408415,1752004237675,-151.39,0.00023213,2]
[370408416,1752004237684,-1025.59951865,0.00023314,9]
[370408417,1752004237694,-298.69,0.00023331,2]
[370408420,1752004237704,-165.1,0.00023371,2]
[370408422,1752004237714,-150.0,0.00023455,4]
[370408423,1752004237723,-1025.59951865,0.00023521,9]
[370408424,1752004237734,-150.0,0.00023633,4]
[370408425,1752004237745,-150.0,0.00023633,4]
[370408426,1752004237755,-501.0,0.0002366,6]
[370408427,1752004237765,-1025.59951865,0.00023728,9]
[370408428,1752004237775,-167.87,0.00023778,2]
[370408429,1752004237785,-150.0,0.00023811,4]
[370408430,1752004237795,-170.33,0.00023836,2]
[370408431,1752004237804,-1025.59951865,0.00023934,10]
[370408432,1752004237814,-170.61057466,0.00023945,2]
[370408433,1752004237824,-207.4,0.00023948,2]
[370408434,1752004237834,-2000.0,0.00023964,5]
[370408435,1752004237845,-300.0,0.00023965,2]
[370408436,1752004237855,-164.22,0.00023978,2]
[370408437,1752004237866,-302.05,0.00023978,2]
[370408438,1752004237876,-171.6,0.00023978,2]
[370408439,1752004237886,-164.22,0.00023978,2]
[370408440,1752004237895,-162.86,0.00023978,2]
[370408441,1752004237905,-171.6,0.00023978,2]
[370408442,1752004237914,-912.41,0.00023978,2]
[370408443,1752004237924,-171.52,0.00023978,2]
[370408444,1752004237934,-457.1,0.00023978,2]
[370408445,1752004237943,-457.1,0.00023978,2]
[370408446,1752004237952,-668.65185757,0.00023986,2]
[370408447,1752004237963,-160.0,0.00023986,2]
[370408448,1752004237974,-4000.000001,0.00024,15]
[370408449,1752004237985,-10000.0,0.00024,2]
[370408450,1752004237997,-9999.0,0.00024,2]
[370408451,1752004238007,-188.88358567,0.00024027,2]
[370408452,1752004238017,-1159.813863,0.00024127,2]
[370408472,1752004238300,-928.175209,0.0002189,2]
[370408474,1752004238309,-530.90721158,0.00024127,2]
[370408484,1752004238400,-809.27892542,0.00024127,2]
[370408486,1752004238411,-250.0,0.00024127,2]
[370408488,1752004238421,-2500.0,0.00024127,2]
[370408490,1752004238430,-250.0,0.00024127,2]
[370408492,1752004238440,-1025.59951865,0.00024141,10]
[370408494,1752004238449,-150.0,0.00024166,4]
[370408496,1752004238460,-2000.0,0.000242,5]
[370408498,1752004238469,-500.0,0.00024205,7]
[370408499,1752004238479,-578.03,0.00024205,7]
[370408500,1752004238490,-150.0,0.00024255,4]
[370408501,1752004238499,-290.04,0.00024278,2]
[370408502,1752004238510,-420.0,0.00024319,2]
[370408503,1752004238521,-1025.59951865,0.00024348,11]
[370408504,1752004238536,-1945.27957111,0.00024393,5]
[370408505,1752004238549,-54.72042889,0.00024393,5]
[370408506,1752004238558,-300.0,0.00024393,2]
[370408507,1752004238568,-2000.0,0.000244,2]
[370408508,1752004238579,-1680.0,0.00024432,2]
[370408509,1752004238589,-613.79613631,0.0002445,4]
[370408510,1752004238601,-165.62638658,0.0002445,2]
[370408511,1752004238613,-154.41014861,0.0002445,2]
[370408512,1752004238624,-865.79457469,0.0002445,2]
[370408513,1752004238634,-161.38272726,0.0002445,2]
[370408514,1752004238644,-154.41014861,0.00024473,2]
[370408515,1752004238653,-865.79457464,0.00024492,2]
[370408516,1752004238663,-154.41014861,0.00024495,2]
[370408517,1752004238673,-154.41014861,0.00024518,2]
[370408518,1752004238682,-150.0,0.00024521,4]
[370408519,1752004238692,-363.98508441,0.00024525,2]
[370408520,1752004238702,-865.79457464,0.00024535,2]
[370408521,1752004238712,-154.41014861,0.00024541,2]
[370408523,1752004238722,-255.66,0.00024548,3]
[370408524,1752004238731,-871.1365534,0.00024548,5]
[370408525,1752004238743,-3176.49192955,0.00024548,5]
[370408526,1752004238752,-210.34477682,0.00024549,2]
[370408527,1752004238761,-837.09214054,0.00024549,2]
[370408528,1752004238771,-837.09214054,0.0002455,7]
[370408529,1752004238780,-210.34477682,0.0002455,7]
[370408530,1752004238790,-3225.30056911,0.0002455,7]
[370408531,1752004238801,-751.43252621,0.0002455,7]
[370408686,1752004240507,-24511.94497014,0.0002455,7]
[370408692,1752004240562,-5179.31,0.0002455,7]
[370408694,1752004240575,-47350.60470351,0.0002455,7]
[370408696,1752004240585,-6078.14142347,0.0002455,7]
[370408698,1752004240594,-345007.54118713,0.0002455,2]
[370408700,1752004240606,-200.0,0.0002455,2]
[370408702,1752004240616,-200.0,0.0002455,2]
[370408704,1752004240626,-230.02146,0.0002455,2]
[370408707,1752004240636,-5000.0,0.00024557,2]
[370408709,1752004240646,-363.6653598,0.00024557,2]
[370408711,1752004240655,-154.41014861,0.00024564,2]
[370408713,1752004240665,-501.0,0.00024568,7]
[370408715,1752004240675,-865.79457464,0.00024577,2]
[370408717,1752004240684,-154.41014861,0.00024586,2]
[370408718,1752004240694,-154.41014861,0.00024609,2]
[370408720,1752004240703,-865.79457464,0.00024619,2]
[370408723,1752004240713,-154.41014861,0.00024632,2]
[370408725,1752004240723,-949.0,0.00024646,2]
[370408727,1752004240733,-3344.0,0.00024646,2]
[370408729,1752004240743,-641.0,0.00024646,2]
[370408731,1752004240752,-805.0,0.00024646,2]
[370408733,1752004240762,-2011.0,0.00024646,2]
[370408735,1752004240772,-932.0,0.00024646,2]
[370408737,1752004240781,-593.0,0.00024646,2]
[370408739,1752004240791,-1283.0,0.00024646,2]
[370408741,1752004240800,-561.0,0.00024646,2]
[370408743,1752004240810,-1682.0,0.00024646,2]
[370408745,1752004240819,-754.0,0.00024646,2]
[370408747,1752004240829,-859.0,0.00024646,2]
[370408749,1752004240838,-4072.05190325,0.00024646,2]
[370409013,1752004243398,-39.94809675,0.00024646,2]
[370409015,1752004243408,-7158.0,0.00024646,2]
[370409018,1752004243418,-887.0,0.00024646,2]
[370409020,1752004243427,-636.69262567,0.00024647,2]
[370409022,1752004243437,-150.51,0.00024647,2]
[370409024,1752004243446,-154.41014861,0.00024655,2]
[370409026,1752004243455,-344.67779653,0.00024656,2]
[370409028,1752004243465,-500.0,0.00024656,2]
[370409030,1752004243474,-185.20544601,0.00024656,2]
[370409032,1752004243484,-500.0,0.00024656,2]
[370409034,1752004243493,-157.81560813,0.00024656,2]
[370409036,1752004243503,-500.0,0.00024656,2]
[370409038,1752004243512,-500.0,0.00024656,2]
[370409040,1752004243522,-219.36994463,0.00024656,2]
[370409042,1752004243535,-340.35865507,0.00024656,2]
[370409048,1752004243588,-742.5,0.00024656,2]
[370409058,1752004243668,-651.0,0.00024656,2]
[370409336,1752004246762,-928.175209,0.00024656,2]
[370409681,1752004965906,158.7,0.00013699,2]
[370409682,1752005062225,167.0,0.0003013,120]
[370409684,1752005075951,150.0,0.0003013,120]
[370409685,1752005084850,150.0,0.0003013,120]
[370409686,1752005095178,150.0,0.0003013,120]
[370409687,1752005101324,150.0,0.0003013,120]
[370409688,1752005118506,200.0,0.0003013,120]
[370409689,1752005127311,200.0,0.0003013,120]
[370409690,1752005140225,500.0,0.00030136,120]
[370409692,1752005177583,-875.175423,0.00024163,4]
[370409693,1752005177607,-1000.0,0.000245,6]
[370409694,1752005177631,-1000.0,0.000245,6]
[370409695,1752005177654,-1000.0,0.000245,6]
[370409696,1752005177677,-1000.0,0.000245,7]
[370409697,1752005177700,-1000.0,0.000245,5]
[370409698,1752005184080,500.0,0.00030136,120]
[370409699,1752005184736,-168.57,0.00018924,2]
[370409700,1752005184762,-150.0,0.00022,2]
[370409701,1752005184786,-150.0,0.00022414,2]
[370409702,1752005184811,-150.0,0.00022414,2]
[370409703,1752005184839,-150.0,0.00022414,2]
[370409704,1752005184863,-150.0,0.00022414,2]
[370409705,1752005184889,-150.0,0.00022414,2]
[370409706,1752005184916,-666.0,0.00023488,2]
[370409707,1752005184940,-151.39,0.0002354,2]
[370409708,1752005184965,-754.0,0.00023561,2]
[370409709,1752005184989,-859.0,0.00023561,2]
[370409710,1752005185013,-1164.0,0.00023561,2]
[370409711,1752005185039,-887.0,0.00023561,2]
[370409712,1752005185066,-501.0,0.00023568,2]
[370409713,1752005185092,-198.06,0.00023589,2]
[370409714,1752005185120,-283.39,0.00023592,2]
[370409715,1752005185145,-775.15,0.00023611,2]
[370409716,1752005185168,-1000.0,0.00023784,2]
[370409717,1752005185193,-1200.0,0.00023799,2]
[370409718,1752005185217,-2000.0,0.000238,2]
[370409719,1752005185243,-170.33,0.00023836,2]
[370409720,1752005185268,-326.47,0.00023843,2]
[370409721,1752005185292,-250.0,0.00023874,2]
[370409722,1752005185322,-210.34477682,0.00024368,2]
[370409723,1752005185352,-837.09214054,0.00024368,2]
[370409724,1752005185379,-230.02146,0.0002441,2]
[370409725,1752005185409,-207.4,0.00024435,2]
[370409726,1752005185437,-300.0,0.0002448,2]
[370409727,1752005185464,-150.0,0.0002448,2]
[370409728,1752005185490,-150.0,0.0002448,2]
[370409729,1752005185516,-501.0,0.00024502,3]
[370409730,1752005185541,-623.79118419,0.00024545,2]
[370409731,1752005185566,-154.41014861,0.00024555,2]
[370409732,1752005185590,-161.38272723,0.00024556,2]
[370409733,1752005185614,-5000.0,0.00024557,2]
[370409734,1752005185638,-606.05620232,0.00024557,2]
[370409735,1752005185662,-167.1074556,0.00024557,2]
[370409736,1752005185686,-363.6653598,0.00024557,2]
[370409737,1752005185710,-623.79118412,0.00024577,2]
[370409738,1752005185735,-606.05620224,0.00024587,2]
[370409739,1752005185760,-150.0,0.000246,2]
[370409740,1752005200523,-623.79118412,0.00024609,2]
[370409741,1752005200548,-154.41014861,0.0002461,2]
[370409742,1752005200573,-177.416,0.00024627,7]
[370409743,1752005200600,-2397.408,0.00024627,7]
[370409744,1752005200625,-218.88078486,0.0002463,2]
[370409745,1752005200651,-160.0,0.0002463,2]
[370409746,1752005200678,-623.79118412,0.0002464,2]
[370409747,1752005200704,-2301.32041281,0.00024644,4]
[370409748,1752005200730,-329.62,0.00024648,2]
[370409749,1752005200756,-606.05620224,0.00024648,2]
[370409750,1752005200781,-761.2331768,0.00024649,2]
[370409751,1752005200804,-8462.11923258,0.00024649,2]
[370409752,1752005229363,150.0,0.00027534,120]
[370409753,1752005229617,150.0,0.00027671,120]
[370409754,1752005237121,150.0,0.00027808,120]
[370409755,1752005237526,150.0,0.00027945,120]
[370409756,1752005237987,150.0,0.00028082,120]
[370409757,1752005238083,150.0,0.00028219,120]
[370409758,1752005238272,150.0,0.00028356,120]
[370409759,1752005239107,150.0,0.00028493,120]
[370409760,1752005239399,150.0,0.0002863,120]
[370409761,1752005239770,150.0,0.00028767,120]
[370409762,1752005240032,150.0,0.00028904,120]
[370409763,1752005240324,200.44966079,0.00029041,120]
[370409765,1752005353797,152.0,0.00029,120]
[370409766,1752005432161,-1492.91777025,0.00023,10]
[370409767,1752005432170,-241.67,0.00023606,2]
[370409768,1752005432179,-167.54,0.00023619,2]
[370409769,1752005432188,-150.0,0.00023658,2]
[370409770,1752005432198,-150.0,0.00023658,2]
[370409771,1752005432208,-363.51,0.00023748,2]
[370409772,1752005432218,-207.4,0.00023786,2]
[370409773,1752005432228,-150.0,0.00023961,2]
[370409774,1752005432237,-765.778495,0.00024163,4]
[370409775,1752005432247,-168.0,0.00024314,2]
[370409776,1752005432256,-168.0,0.00024339,2]
[370409777,1752005432266,-168.0,0.00024386,2]
[370409778,1752005432276,-1000.0,0.00024419,2]
[370409779,1752005432285,-501.0,0.00024502,3]
[370409780,1752005432294,-160.0,0.00024542,2]
[370409781,1752005432304,-154.41014861,0.00024549,2]
[370409782,1752005432313,-374.27471049,0.00024549,2]
[370409783,1752005432322,-424.23934164,0.00024555,2]
[370409784,1752005432331,-2500.0,0.00024556,2]
[370409785,1752005432341,-300.0,0.00024556,2]
[370409786,1752005432350,-161.38272723,0.00024556,2]
[370409787,1752005432360,-1561.33680678,0.00024557,2]
[370409788,1752005432391,-871.0,0.00024557,2]
[370409789,1752005432428,-2567.66319322,0.00024557,2]
[370409790,1752005432438,-167.10745554,0.00024557,2]
[370409791,1752005432448,-374.27471047,0.0002458,2]
[370409792,1752005432457,-374.27471047,0.00024612,2]
[370409793,1752005432467,-424.23934156,0.00024616,2]
[370409794,1752005432476,-210.34477682,0.00024618,2]
[370409795,1752005432485,-52.77315537,0.00024618,2]
[370409796,1752005432496,-510.37882091,0.00024618,2]
[370409797,1752005436448,-273.94016426,0.00024618,2]
[370409798,1752005436458,-154.41014861,0.00024643,2]
[370409799,1752005436467,-157.76393983,0.00024643,2]
[370409800,1752005436479,-216.51077064,0.00024643,2]
[370409801,1752005436489,-3124.62698034,0.00024649,2]
[370409802,1752005436512,-1368.0,0.00024649,2]
[370409804,1752005436524,-7099.95915942,0.00024649,2]
[370409813,1752005437711,-1211.62092196,0.00024649,2]
[370409814,1752005437724,-1965.30427423,0.00024649,2]
[370409815,1752005437736,-1765.79648198,0.00024649,2]
[370409816,1752005437747,-494.76529176,0.00024649,2]
[370410035,1752005440133,-2301.32041182,0.00024649,2]
[370410037,1752005440145,-2799.23844213,0.00024649,2]
[370410339,1752005442964,-1547.70117529,0.00024649,2]
[370410655,1752005446333,-199.79330883,0.00024649,2]
[370410670,1752005486635,460.0,0.00027397,120]
[370410671,1752005486862,460.0,0.00027397,120]
[370410672,1752005487130,460.0,0.00027397,120]
[370410673,1752005487402,460.0,0.00027397,120]
[370410674,1752005487712,460.0,0.00027397,120]
[370410675,1752005487947,460.0,0.00027397,120]
[370410676,1752005488189,460.0,0.00027397,120]
[370410677,1752005488448,460.0,0.00027397,120]
[370410678,1752005488675,460.0,0.00027397,120]
[370410679,1752005488909,460.0,0.00027397,120]
[370410680,1752005489177,460.0,0.00027397,120]
[370410681,1752005489427,460.0,0.00027671,120]
[370410682,1752005489656,460.0,0.00027945,120]
[370410683,1752005489928,460.0,0.00028219,120]
[370410684,1752005490168,460.0,0.00028493,120]
[370410685,1752005490406,460.0,0.00028767,120]
[370410686,1752005490670,460.0,0.00029041,120]
[370410687,1752005490953,460.0,0.00029315,120]
[370410688,1752005491329,460.0,0.00029589,120]
[370410689,1752005491500,460.0,0.00029863,120]
[370410690,1752005491745,460.0,0.00030136,120]
[370410693,1752005856913,157.02,0.00029504,120]
[370410696,1752006098037,158.38,0.00013699,2]
[370410697,1752006310992,7841.62,0.00014,2]
[370410698,1752006311016,8000.0,0.00014,2]
[370410699,1752006311037,8000.0,0.00014,2]
[370410700,1752006311060,8000.0,0.00014,2]
[370410701,1752006311082,8000.0,0.00014,2]
[370410702,1752006311103,8000.0,0.00014,2]
[370410703,1752006311125,8000.0,0.00014,2]
[370410704,1752006311146,2427.53720041,0.00014,2]
[370410705,1752006338835,22935.42,9e-05,2]
[370410706,1752006338856,5572.46279959,9e-05,2]
[370410707,1752006338876,2884.08434842,9e-05,2]
[370410710,1752006525443,5115.91565158,0.000151,2]
[370410711,1752006525465,8000.0,0.000151,2]
[370410712,1752006525486,8000.0,0.000151,2]
[370410713,1752006525508,8000.0,0.000151,2]
[370410714,1752006525528,8000.0,0.000151,2]
[370410715,1752006525550,8000.0,0.000151,2]
[370410716,1752006525596,163536.90650173,0.000151,2]
[370410717,1752006530927,1922.00807561,0.00013368,2]
[370410737,1752006631906,-292.0,0.0002053,2]
[370410738,1752006631916,-300.0,0.00020883,2]
[370410739,1752006631925,-124.11196458,0.00021235,2]
[370410740,1752006632018,-306.85947387,0.00021235,2]
[370410741,1752006632028,-300.0,0.00021711,2]
[370410742,1752006632038,-207.0,0.000219,2]
[370410743,1752006632047,-292.0,0.000219,2]
[370410744,1752006632056,-226.07185963,0.00022389,2]
[370410745,1752006632065,-182.427274,0.00022389,2]
[370410746,1752006632074,-253.08561621,0.00022389,2]
[370410747,1752006632083,-155.03279339,0.00022389,2]
[370410748,1752006632093,-154.20834801,0.00022389,2]
[370410749,1752006632103,-152.59048816,0.00022389,2]
[370410750,1752006632112,-507.0,0.00022502,2]
[370410751,1752006632121,-1000.0,0.00022514,2]
[370410752,1752006632130,-300.0,0.00022583,2]
[370410753,1752006632139,-300.0,0.00022944,2]
[370410754,1752006632149,-300.0,0.00022945,2]
[370410755,1752006632158,-207.0,0.0002327,2]
[370410756,1752006632167,-292.0,0.0002327,2]
[370410757,1752006632177,-3080.43981238,0.000234,3]
[370410783,1752006632725,-545.56018762,0.000234,3]
[370410784,1752006632734,-328.6,0.00023408,2]
[370410785,1752006632744,-176.10391658,0.00023509,2]
[370410793,1752006637881,-132.50608342,0.00023509,2]
[370410794,1752006637890,-507.0,0.00023515,3]
[370410796,1752006637900,-166.0127106,0.0002357,2]
[370410799,1752006637912,-1.9872894,0.0002357,2]
[370410800,1752006637921,-356.34756224,0.00023597,2]
[370410801,1752006637947,-309.65243776,0.00023597,2]
[370410802,1752006637956,-157.02,0.00023603,2]
[370410803,1752006637966,-151.39,0.00023606,2]
[370410804,1752006637975,-207.4,0.0002366,2]
[370410805,1752006637985,-1000.0,0.00023674,2]
[370410806,1752006637995,-168.0,0.00023769,2]
[370410807,1752006638004,-150.0,0.00023793,2]
[370410808,1752006638013,-5509.0,0.000238,5]
[370410809,1752006638023,-170.33,0.00023836,2]
[370410810,1752006638032,-980.68294361,0.000239,10]
[370410811,1752006638041,-183.0,0.0002397,2]
[370410812,1752006638051,-5000.00962361,0.00024,5]
[370410813,1752006638060,-168.0,0.00024067,2]
[370410814,1752006638069,-980.68294348,0.00024072,10]
[370410815,1752006638079,-168.0,0.00024104,2]
[370410816,1752006638088,-800.992303,0.00024162,4]
[370410817,1752006638099,-168.0,0.00024215,2]
[370410818,1752006638108,-980.68294348,0.00024245,10]
[370410819,1752006638117,-150.0,0.00024274,2]
[370410820,1752006638127,-183.0,0.00024286,2]
[370410821,1752006638136,-500.0,0.00024292,2]
[370410822,1752006638146,-252.417,0.00024292,2]
[370410823,1752006638155,-160.0,0.00024292,2]
[370410824,1752006638165,-207.72,0.000243,2]
[370410825,1752006638174,-1560.56959462,0.00024307,2]
[370410826,1752006638184,-150.0,0.00024409,2]
[370410827,1752006638193,-168.0,0.0002441,2]
[370410828,1752006638203,-980.68294348,0.00024417,11]
[370410829,1752006638212,-168.0,0.00024443,2]
[370410830,1752006638222,-200.0,0.00024458,2]
[370410831,1752006638232,-200.0,0.00024459,2]
[370410832,1752006638242,-200.0,0.00024459,2]
[370410833,1752006638251,-507.0,0.00024529,5]
[370410834,1752006638261,-1000.0,0.0002455,2]
[370410835,1752006638271,-224.5648263,0.00024551,2]
[370410836,1752006638280,-339.39147332,0.00024552,2]
[370410837,1752006638289,-161.18137936,0.00024552,2]
[370410838,1752006638299,-190.32787186,0.00024552,2]
[370410839,1752006638309,-613.79613628,0.00024552,4]
[370410840,1752006638318,-166.68389148,0.00024553,2]
[370410841,1752006638327,-5000.0,0.00024557,2]
[370410842,1752006638337,-3725.7939,0.00024557,3]
[370410843,1752006638346,-311.7131655,0.00024557,2]